fUST/lending_fUST_20251217
["ID","MTS","AMOUNT","RATE_DAILY","PERIOD"]
[398860655,1765931444247,-300.0,0.00011743,2]
[398860656,1765931444257,-300.0,0.00011743,2]
[398860658,1765931444266,-300.0,0.00011743,2]
[398860660,1765931444275,-300.0,0.00011743,2]
[398860662,1765931444285,-300.0,0.00011743,2]
[398860664,1765931444294,-300.0,0.00011743,2]
[398860666,1765931444303,-300.0,0.00011743,2]
[398860668,1765931444314,-300.0,0.00011743,2]
[398860670,1765931444323,-300.0,0.00011743,2]
[398860672,1765931444333,-300.0,0.00011743,2]
[398860674,1765931444343,-300.0,0.00011743,2]
[398860676,1765931444353,-300.0,0.00011743,2]
[398860678,1765931444362,-300.0,0.00011743,2]
[398860680,1765931444371,-300.0,0.00011743,2]
[398860682,1765931444380,-300.0,0.00011743,2]
[398860684,1765931444389,-222.61593733,0.00011825,2]
[398860686,1765931444399,-600.0,0.00011977,2]
[398860687,1765931444408,-320.6260213,0.00012327,2]
[398860689,1765931444417,-321.02954108,0.00012327,2]
[398860691,1765931444426,-450.25,0.00012329,2]
[398860693,1765931444437,-169.0528686,0.00012369,2]
[398860696,1765931444457,-198.08824625,0.00012579,2]
[398860698,1765931444469,-900.5466405,0.0001287,2]
[398860700,1765931444478,-720.0,0.00013175,2]
[398860702,1765931444488,-500.0,0.00013273,2]
[398860704,1765931444499,-500.0,0.00013273,2]
[398860706,1765931444508,-150.0,0.00013458,2]
[398860708,1765931444518,-150.0,0.00013458,2]
[398860710,1765931444528,-150.0,0.00013458,2]
[398860712,1765931444537,-150.0,0.00013458,2]
[398860714,1765931444546,-150.0,0.00013458,2]
[398860716,1765931444556,-150.0,0.00013458,2]
[398860718,1765931444570,-150.0,0.00013595,2]
[398860720,1765931444580,-150.0,0.00013595,2]
[398860722,1765931444591,-150.0,0.00013595,2]
[398860724,1765931444600,-150.0,0.00013595,2]
[398860726,1765931444610,-150.0,0.00013595,2]
[398860728,1765931444619,-150.0,0.00013595,2]
[398860730,1765931444628,-1046.85,0.00013698,2]
[398860732,1765931444637,-1046.85,0.00013698,2]
[398860734,1765931444647,-1046.85,0.00013698,2]
[398860736,1765931444656,-500.0,0.00013698,2]
[398860738,1765931444665,-642.399319,0.00013699,2]
[398860740,1765931444675,-500.0,0.00013699,2]
[398860742,1765931444684,-500.0,0.00013699,2]
[398860743,1765931444694,-1046.85,0.0001372,2]
[398860745,1765931444704,-1046.85,0.0001372,2]
[398860747,1765931444713,-1046.85,0.0001372,2]
[398860749,1765931444722,-1046.85,0.0001372,2]
[398860751,1765931444732,-1046.85,0.0001372,2]
[398860753,1765931444741,-1046.85,0.0001372,2]
[398860755,1765931444751,-1046.85,0.0001372,2]
[398860757,1765931444760,-1046.85,0.0001372,2]
[398860759,1765931444769,-1046.85,0.0001372,2]
[398860761,1765931444779,-1046.85,0.0001372,2]
[398860763,1765931444788,-1046.85,0.0001372,2]
[398860765,1765931444798,-1046.85,0.0001372,2]
[398860767,1765931444807,-1046.85,0.0001372,2]
[398860769,1765931444816,-1046.85,0.0001372,2]
[398860770,1765931444825,-1046.85,0.0001372,2]
[398860772,1765931444834,-1046.85,0.0001372,2]
[398860774,1765931444843,-1046.85,0.0001372,2]
[398860776,1765931444852,-1046.85,0.0001372,2]
[398860778,1765931444861,-1046.85,0.0001372,2]
[398860780,1765931444872,-1046.85,0.0001372,2]
[398860782,1765931444881,-1046.93291544,0.0001372,2]
[398860784,1765931444890,-204.83,0.0001372,2]
[398860786,1765931444900,-200.0,0.00013732,2]
[398860788,1765931444910,-200.0,0.00013732,2]
[398860790,1765931444920,-200.0,0.00013732,2]
[398860792,1765931444929,-200.0,0.00013732,2]
[398860794,1765931444938,-200.0,0.00013732,2]
[398860796,1765931444948,-200.0,0.00013732,2]
[398860798,1765931444961,-500.0,0.00013821,2]
[398860800,1765931444970,-256.57430065,0.00013825,2]
[398860802,1765931444980,-415.0,0.00013831,2]
[398860804,1765931444989,-1000.0,0.00014247,2]
[398860806,1765931444998,-1000.0,0.00014247,2]
[398860808,1765931445008,-864.0,0.00014492,2]
[398860810,1765931445018,-1500.0,0.00014795,2]
[398860812,1765931445027,-1432.73690697,0.00014795,2]
[398860815,1765931445040,-67.26309303,0.00014795,2]
[398860817,1765931445050,-219.0,0.00015041,3]
[398860818,1765931445059,-367.360497,0.00015068,2]
[398860821,1765931445070,-469.06298112,0.00015409,2]
[398860823,1765931445079,-844.31336601,0.00015409,2]
[398860825,1765931445089,-393.87338167,0.00015456,2]
[398860826,1765931445100,-322.70707261,0.00015464,2]
[398860827,1765931445110,-3070.0971356,0.00015664,2]
[398860828,1765931445119,-1621.5442902,0.00015664,2]
[398860829,1765931445129,-186.7094181,0.00015664,2]
[398860830,1765931445139,-160.0,0.0001577,2]
[398860831,1765931445148,-250.0,0.00015806,2]
[398860832,1765931445159,-514.84070869,0.00015806,2]
[398860833,1765931445169,-250.0,0.00015806,2]
[398860834,1765931445179,-250.0,0.00015806,2]
[398860835,1765931445189,-250.0,0.00015806,2]
[398860836,1765931445199,-250.0,0.00015806,2]
[398860837,1765931445208,-250.0,0.00015806,2]
[398860838,1765931445218,-250.0,0.00015806,2]
[398860839,1765931445227,-250.0,0.00015806,2]
[398860840,1765931445237,-250.0,0.00015806,2]
[398860841,1765931445247,-250.0,0.00015806,2]
[398860842,1765931445257,-250.0,0.00015806,2]
[398860843,1765931445267,-290.53266397,0.00015825,2]
[398860844,1765931445276,-1000.0,0.00015941,2]
[398860845,1765931445287,-6021.0,0.00016,2]
[398860846,1765931445300,-161.966,0.0001619,2]
[398860847,1765931445310,-3558.92988729,0.00016264,2]
[398860848,1765931445320,-258.38328948,0.00016269,2]
[398860849,1765931445330,-1501.00153957,0.00016294,2]
[398860850,1765931445340,-580.87273069,0.00016295,2]
[398860852,1765931445350,-939.0,0.000163,2]
[398860854,1765931445360,-260.0,0.00016318,2]
[398860856,1765931445370,-533.88981491,0.00016354,2]
[398860859,1765931445380,-500.0,0.00016438,2]
[398860860,1765931445389,-197.17930707,0.00016438,2]
[398860863,1765931445399,-167.0,0.00016685,3]
[398860864,1765931445408,-415.0,0.00016831,2]
[398860865,1765931445418,-360.0,0.00016866,2]
[398860866,1765931445428,-553.64373807,0.00016902,2]
[398860867,1765931445438,-192.6496393,0.00017236,2]
[398860868,1765931445449,-1032.66263234,0.00017257,2]
[398860869,1765931445458,-460.0,0.00017414,2]
[398860870,1765931445467,-574.12855637,0.0001745,2]
[398860871,1765931445477,-1000.0,0.00017535,2]
[398860872,1765931445486,-244.0,0.00017535,2]
[398860873,1765931445496,-324.49102729,0.00017825,2]
[398860874,1765931445505,-560.0,0.00017962,2]
[398860875,1765931445516,-500.0,0.0001799,2]
[398860876,1765931445526,-353.13438899,0.00017998,2]
[398860877,1765931445539,-422.28291648,0.00018027,3]
[398860878,1765931445548,-1161.6569274,0.00018027,3]
[398860879,1765931445558,-192.6496393,0.00018058,2]
[398860880,1765931445573,-800.0,0.00018117,2]
[398860882,1765931445582,-169.0,0.00018329,3]
[398860883,1765931445592,-799.19951372,0.00018486,3]
[398860885,1765931445601,-367.360497,0.00018493,2]
[398860887,1765931445611,-660.0,0.0001851,2]
[398860888,1765931445620,-183.8289622,0.0001861,2]
[398860890,1765931445630,-192.6496393,0.0001888,2]
[398860891,1765931445639,-192.6496393,0.0001888,2]
[398860892,1765931445651,-192.6496393,0.0001888,2]
[398860893,1765931445661,-192.6496393,0.0001888,2]
[398860894,1765931445671,-192.6496393,0.0001888,2]
[398860895,1765931445680,-192.6496393,0.0001888,2]
[398860896,1765931445689,-192.6496393,0.0001888,2]
[398860897,1765931445699,-192.6496393,0.0001888,2]
[398860898,1765931445709,-385.2992786,0.0001888,2]
[398860899,1765931445718,-266.78528376,0.000189,2]
[398860900,1765931445728,-500.0,0.00019,7]
[398860901,1765931445737,-500.0,0.00019,7]
[398860903,1765931445746,-500.0,0.00019,7]
[398860904,1765931445756,-500.0,0.00019,7]
[398860905,1765931445766,-500.0,0.00019,7]
[398860906,1765931445776,-500.0,0.00019,7]
[398860908,1765931445785,-500.0,0.00019,7]
[398860909,1765931445794,-500.0,0.00019,7]
[398860910,1765931445804,-500.0,0.00019,7]
[398860911,1765931446110,-500.0,0.00019,7]
[398860912,1765931446132,-500.0,0.00019,7]
[398860913,1765931446142,-500.0,0.00019,7]
[398860914,1765931446152,-500.0,0.00019,7]
[398860915,1765931446161,-500.0,0.00019,7]
[398860916,1765931446171,-500.0,0.00019,7]
[398860917,1765931446181,-500.0,0.00019,7]
[398860918,1765931446190,-500.0,0.00019,7]
[398860919,1765931446200,-500.0,0.00019,7]
[398860920,1765931446210,-500.0,0.00019,7]
[398860921,1765931446219,-500.0,0.00019,7]
[398860922,1765931446228,-500.0,0.00019,7]
[398860923,1765931446238,-500.0,0.00019,7]
[398860924,1765931446247,-500.0,0.00019,7]
[398860925,1765931446256,-500.0,0.00019,7]
[398860926,1765931446266,-500.0,0.00019,7]
[398860928,1765931446280,-500.0,0.00019,7]
[398860930,1765931446290,-500.0,0.00019,7]
[398860931,1765931446300,-500.0,0.00019,7]
[398860932,1765931446309,-500.0,0.00019,7]
[398860933,1765931446320,-500.0,0.00019,7]
[398860934,1765931446340,-500.0,0.00019,7]
[398860935,1765931446349,-500.0,0.00019,7]
[398860936,1765931446358,-500.0,0.00019,7]
[398860937,1765931446367,-500.0,0.00019,7]
[398860938,1765931446376,-500.0,0.00019,7]
[398860939,1765931446385,-500.0,0.00019,7]
[398860940,1765931446394,-500.0,0.00019,7]
[398860941,1765931446404,-500.0,0.00019,7]
[398860942,1765931446413,-500.0,0.00019,7]
[398860943,1765931446422,-500.0,0.00019,7]
[398860944,1765931446432,-564.04,0.00019,7]
[398860945,1765931446441,-198.08824625,0.00019,7]
[398860946,1765931446450,-500.0,0.00019,7]
[398860947,1765931446460,-500.0,0.00019,7]
[398860948,1765931446469,-760.0,0.00019058,2]
[398860949,1765931446478,-711.0,0.00019064,5]
[398860950,1765931446487,-580.0,0.00019064,5]
[398860951,1765931446496,-1000.0,0.00019289,10]
[398860952,1765931446505,-492.0,0.00019289,10]
[398860953,1765931446514,-210.55,0.000196,2]
[398860954,1765931446523,-21878.89,0.000196,2]
[398860955,1765931446533,-860.0,0.00019606,2]
[398860956,1765931446542,-192.6186232,0.00019702,2]
[398860957,1765931446551,-192.6496393,0.00019702,2]
[398860958,1765931446561,-192.6496393,0.00019702,2]
[398860959,1765931446570,-192.6496393,0.00019702,2]
[398860960,1765931446579,-1395.009965,0.0001978,5]
[398860961,1765931446588,-1000.0,0.000198,5]
[398860962,1765931446597,-1000.0,0.0001982,5]
[398860963,1765931446606,-358.44939061,0.00019825,2]
[398860964,1765931446615,-20.40330672,0.00019831,2]
[398860965,1765931446949,-394.59669328,0.00019831,2]
[398860966,1765931446958,-1000.0,0.0001984,5]
[398860967,1765931446967,-1000.0,0.0001986,5]
[398860968,1765931446977,-1000.0,0.0001988,5]
[398860969,1765931446986,-1000.0,0.000199,5]
[398860970,1765931446995,-1000.0,0.0001992,5]
[398860971,1765931447004,-1000.0,0.0001994,5]
[398860972,1765931447013,-1000.0,0.0001996,5]
[398860973,1765931447022,-171.0,0.00019973,3]
[398860974,1765931447032,-1000.0,0.0001998,5]
[398860975,1765931447041,-1387.30994937,0.0001999,2]
[398860976,1765931447052,-7241.66754307,0.0001999,2]
[398860977,1765931447066,-25227.19586021,0.0001999,2]
[398861259,1765931879804,347.23,8.238e-05,2]
[398861260,1765931880191,347.23,8.238e-05,2]
[398861261,1765932346814,150.0,7.406e-05,2]
[398861263,1765932448142,-154.22,0.0001,2]
[398861264,1765932448163,-179.22965076,0.000101,2]
[398861265,1765932448184,-128.65569538,0.000102,2]
[398861288,1765932632067,-152.92,0.0001,2]
[398861289,1765932632076,-211.4909879,0.000121,2]
[398861290,1765932632085,-135.57711551,0.000121,2]
[398861291,1765932632119,-17.34288449,0.000121,2]
[398861292,1765932632128,-518.82,0.00012329,2]
[398861293,1765932632137,-198.08824625,0.00012554,2]
[398861294,1765932632146,-300.0,0.00013271,2]
[398861295,1765932632155,-1200.0,0.00013271,2]
[398861296,1765932632163,-193.0,0.00013272,2]
[398861297,1765932632173,-156.0,0.00013272,2]
[398861298,1765932632184,-300.0,0.00013272,2]
[398861299,1765932632193,-300.0,0.00013272,2]
[398861300,1765932632202,-500.0,0.00013273,2]
[398861301,1765932632210,-500.0,0.00013273,2]
[398861302,1765932632219,-500.0,0.00013273,2]
[398861303,1765932632229,-500.0,0.00013273,2]
[398861304,1765932632238,-500.0,0.00013273,2]
[398861305,1765932632247,-500.0,0.00013273,2]
[398861306,1765932632257,-500.0,0.00013273,2]
[398861307,1765932632266,-500.0,0.00013458,2]
[398861308,1765932632275,-500.0,0.00013458,2]
[398861309,1765932632284,-150.0,0.00013458,2]
[398861310,1765932632293,-553.76285516,0.00013595,2]
[398861311,1765932632303,-500.0,0.00013595,2]
[398861312,1765932632312,-150.0,0.00013595,2]
[398861313,1765932632322,-209.46,0.000136,2]
[398861314,1765932632332,-209.46,0.000136,2]
[398861315,1765932632341,-209.46,0.000136,2]
[398861316,1765932632350,-209.46,0.000136,2]
[398861317,1765932632359,-209.46,0.000136,2]
[398861318,1765932632368,-209.46,0.000136,2]
[398861319,1765932632377,-209.46,0.000136,2]
[398861320,1765932632386,-154.21,0.000136,2]
[398861321,1765932632396,-300.0,0.00013673,2]
[398861322,1765932632405,-494.8805155,0.00013698,2]
[398861323,1765932632414,-224.72067876,0.00013698,2]
[398861324,1765932632423,-150.0,0.00013698,2]
[398861325,1765932632432,-500.0,0.00013698,2]
[398861326,1765932632441,-150.0,0.00013698,2]
[398861327,1765932632450,-500.0,0.00013698,2]
[398861328,1765932632459,-1416.043482,0.00013699,2]
[398861329,1765932632468,-500.0,0.00013699,2]
[398861330,1765932632477,-45918.1652504,0.00013699,2]
[398861331,1765932632486,-500.0,0.00013699,2]
[398861332,1765932632495,-500.0,0.00013699,2]
[398861333,1765932632504,-500.0,0.00013699,2]
[398861334,1765932632513,-500.0,0.00013699,2]
[398861335,1765932632522,-500.0,0.00013699,2]
[398861336,1765932632531,-500.0,0.00013699,2]
[398861337,1765932632540,-500.0,0.00013699,2]
[398861338,1765932632549,-500.0,0.00013699,2]
[398861339,1765932632558,-500.0,0.00013699,2]
[398861340,1765932632567,-500.0,0.00013699,2]
[398861341,1765932632577,-500.00629522,0.00013699,2]
[398861342,1765932632586,-500.0,0.00013699,2]
[398861343,1765932632595,-198.00196637,0.00013699,2]
[398861344,1765932632604,-500.0,0.00013699,2]
[398861345,1765932632613,-500.0,0.00013699,2]
[398861346,1765932632622,-500.0,0.00013699,2]
[398861347,1765932632631,-500.0,0.00013699,2]
[398861348,1765932632640,-500.0,0.00013699,2]
[398861349,1765932632649,-500.0,0.00013699,2]
[398861350,1765932632659,-500.0,0.00013699,2]
[398861351,1765932632668,-500.0,0.00013732,2]
[398861352,1765932632677,-150.0,0.00013732,2]
[398861353,1765932632686,-1000.0,0.00013821,2]
[398861354,1765932632696,-1000.0,0.00013821,2]
[398861355,1765932632705,-1000.0,0.00013821,2]
[398861356,1765932632715,-1107.64561163,0.00013821,2]
[398861357,1765932632724,-1000.0,0.00013821,2]
[398861358,1765932632733,-1000.0,0.00013821,2]
[398861359,1765932632742,-150.0,0.00013835,2]
[398861360,1765932632751,-596.0,0.00013835,2]
[398861361,1765932632760,-150.0,0.00013835,2]
[398861362,1765932632769,-500.0,0.00013835,2]
[398861363,1765932632778,-500.0,0.00013869,2]
[398861364,1765932632788,-250.0,0.00013869,2]
[398861365,1765932632797,-200.0,0.00013972,2]
[398861366,1765932632807,-150.0,0.00013972,2]
[398861367,1765932632816,-500.0,0.00013972,2]
[398861368,1765932632824,-300.0,0.00013972,2]
[398861369,1765932632834,-300.0,0.00013972,2]
[398861370,1765932632844,-300.0,0.00013972,2]
[398861371,1765932632853,-300.0,0.00013972,2]
[398861372,1765932632862,-300.0,0.00013972,2]
[398861373,1765932632871,-300.0,0.00013972,2]
[398861374,1765932632880,-300.0,0.00013972,2]
[398861375,1765932632889,-300.0,0.00013972,2]
[398861376,1765932632898,-300.0,0.00013972,2]
[398861377,1765932632907,-300.0,0.00013972,2]
[398861378,1765932632916,-300.0,0.00013972,2]
[398861379,1765932632925,-300.0,0.00013972,2]
[398861380,1765932632934,-300.0,0.00013972,2]
[398861381,1765932632943,-300.0,0.00013972,2]
[398861382,1765932632952,-300.0,0.00013972,2]
[398861383,1765932632962,-600.0,0.00013972,2]
[398861385,1765932632971,-163.238179,0.00013973,2]
[398861387,1765932632980,-500.0,0.00014006,2]
[398861389,1765932632988,-243.75232504,0.000141,2]
[398861391,1765932632997,-152.92,0.000141,2]
[398861393,1765932633006,-150.0,0.00014109,2]
[398861395,1765932633015,-500.0,0.00014109,2]
[398861397,1765932633024,-160.0,0.00014136,2]
[398861399,1765932633033,-500.0,0.00014143,2]
[398861400,1765932633042,-600.0,0.00014221,2]
[398861401,1765932633050,-150.0,0.00014246,2]
[398861402,1765932633059,-416.00162057,0.00014246,2]
[398861403,1765932633069,-500.0,0.00014247,2]
[398861404,1765932633077,-1000.19298973,0.00014247,2]
[398861405,1765932633086,-500.0,0.00014247,2]
[398861407,1765932633095,-1000.0,0.00014247,2]
[398861409,1765932633104,-1000.0,0.00014247,2]
[398861411,1765932633113,-1000.0,0.00014247,2]
[398861413,1765932633123,-500.0,0.00014247,2]
[398861415,1765932633132,-1000.0,0.00014247,2]
[398861417,1765932633140,-500.0,0.0001428,2]
[398861419,1765932633150,-1000.0,0.00014368,2]
[398861422,1765932633160,-1500.0,0.00014368,2]
[398861424,1765932633169,-336.00024543,0.00014368,2]
[398861426,1765932633178,-1500.0,0.00014368,2]
[398861428,1765932633192,-250.0,0.00014383,2]
[398861429,1765932633201,-420.0,0.00014551,2]
[398861431,1765932633211,-260.0,0.00014684,2]
[398861433,1765932633220,-97007.21094303,0.00014695,2]
[398861436,1765932633233,-401.15789213,0.00014695,2]
[398861604,1765932638231,-971.06999034,0.00014695,2]
[398861605,1765932638312,-21893.09866214,0.00014695,2]
[398861606,1765932638323,-2668.98,0.00014695,2]
[398861607,1765932638335,-5672.69566845,0.00014695,2]
[398861608,1765932638347,-27082.3,0.00014695,2]
[398861609,1765932638358,-3006.72,0.00014695,2]
[398861610,1765932638376,-2739.5793,0.00014695,2]
[398861611,1765932638387,-1587.82724308,0.00014695,2]
[398861632,1765932640440,-518.82147696,0.00014695,2]
[398861634,1765932640451,-12310.96601675,0.00014695,2]
[398861636,1765932640467,-267.72481847,0.00014695,2]
[398861638,1765932640478,-4146.50082101,0.00014695,2]
[398861973,1765932643482,-3819.33361349,0.00014695,2]
[398862262,1765932646434,-53080.78615893,0.00014695,2]
[398862520,1765933253353,3457.1,9.64e-05,2]
[398862522,1765933832347,-152.96446774,9.752e-05,2]
[398862523,1765933832357,-177.27821028,9.789e-05,2]
[398862524,1765933832366,-175.72,0.0001,2]
[398862525,1765933832375,-1000.0,0.00011,2]
[398862526,1765933832384,-812.0,0.00011314,2]
[398862527,1765933832393,-6432.875848,0.00011315,2]
[398862528,1765933832402,-300.0,0.00011499,2]
[398862529,1765933832411,-300.0,0.00011533,2]
[398862530,1765933832420,-500.0,0.00011534,2]
[398862531,1765933832429,-500.0,0.00011534,2]
[398862533,1765933832438,-500.0,0.00011534,2]
[398862535,1765933832447,-636.47839002,0.00011534,2]
[398862537,1765933832455,-500.0,0.00011534,2]
[398862539,1765933832464,-500.0,0.00011534,2]
[398862541,1765933832473,-500.0,0.00011534,2]
[398862543,1765933832483,-276.96963024,0.00011534,2]
[398862545,1765933832492,-500.0,0.00011534,2]
[398862547,1765933832502,-500.0,0.00011534,2]
[398862548,1765933832511,-500.0,0.00011534,2]
[398862549,1765933832521,-500.0,0.00011534,2]
[398862550,1765933832530,-500.0,0.00011534,2]
[398862551,1765933832539,-500.0,0.00011534,2]
[398862552,1765933832548,-500.0,0.00011534,2]
[398862553,1765933832557,-500.0,0.00011534,2]
[398862554,1765933832566,-443.5092996,0.00011534,2]
[398862555,1765933832575,-500.0,0.00011534,2]
[398862556,1765933832584,-500.0,0.00011534,2]
[398862557,1765933832593,-500.0,0.00011534,2]
[398862558,1765933832602,-500.0,0.00011534,2]
[398862559,1765933832611,-504.25815822,0.00011534,2]
[398862560,1765933832619,-500.0,0.00011534,2]
[398862561,1765933832628,-500.0,0.00011534,2]
[398862562,1765933832637,-4.73411186,0.00011534,2]
[398862563,1765933832648,-353.09783033,0.00011534,2]
[398862564,1765933832659,-142.16805781,0.00011534,2]
[398862565,1765933832667,-500.0,0.00011534,2]
[398862566,1765933832676,-500.0,0.00011534,2]
[398862567,1765933832686,-300.0,0.0001154,2]
[398862568,1765933832696,-300.0,0.0001154,2]
[398862569,1765933832705,-300.0,0.0001154,2]
[398862570,1765933832714,-300.0,0.0001154,2]
[398862571,1765933832723,-300.0,0.0001154,2]
[398862572,1765933832732,-300.0,0.0001154,2]
[398862573,1765933832741,-300.0,0.0001154,2]
[398862574,1765933832750,-300.0,0.0001154,2]
[398862575,1765933832759,-300.0,0.0001154,2]
[398862576,1765933832769,-300.0,0.0001154,2]
[398862577,1765933832778,-300.0,0.0001154,2]
[398862578,1765933832787,-182.81497019,0.0001154,2]
[398862716,1765933838473,-389.36201758,0.00011533,2]
[398862717,1765933838487,-500.0,0.00011533,2]
[398862718,1765933838496,-382.6121444,0.00011533,2]
[398862719,1765933838505,-117.18502981,0.0001154,2]
[398862720,1765933838514,-300.0,0.0001154,2]
[398862721,1765933838524,-300.0,0.0001154,2]
[398862722,1765933838533,-300.0,0.0001154,2]
[398862723,1765933838543,-600.0,0.0001177,2]
[398862724,1765933838552,-209.18828813,0.00011789,2]
[398862725,1765933838561,-198.08824625,0.00012567,2]
[398862726,1765933838571,-300.0,0.0001263,2]
[398862727,1765933838580,-183.27,0.00012899,2]
[398862728,1765933838589,-157.30447513,0.00012899,2]
[398862729,1765933838599,-457.72258735,0.00012899,2]
[398862730,1765933838608,-8098.16066773,0.000129,2]
[398862731,1765933838617,-179.80715979,0.00012947,2]
[398862732,1765933838629,-540.19284021,0.00012947,2]
[398862733,1765933838638,-116.85041216,0.00013,2]
[398862734,1765933838649,-883.14958784,0.00013,2]
[398862735,1765933838659,-1000.0,0.00013,2]
[398862736,1765933838668,-500.0,0.00013273,2]
[398862737,1765933838678,-500.0,0.00013273,2]
[398862738,1765933838687,-500.0,0.00013273,2]
[398862739,1765933838696,-500.0,0.00013273,2]
[398862740,1765933838706,-446937.29103036,0.00013499,2]
[398862741,1765933838717,-2000.0,0.00013499,2]
[398862742,1765933838728,-9003.88907233,0.00013499,2]
[398862743,1765933840589,-8965.26925915,0.00013499,2]
[398862744,1765933840646,-1987.87049881,0.00013499,2]
[398862994,1765933843573,-31418.17967045,0.00013499,2]
[398863237,1765933846477,-496.15,0.00013499,2]
[398863240,1765933846489,-284066.44657693,0.00013499,2]
[398863251,1765933846587,-53088.07130126,0.00013499,2]
[398863615,1765934791135,-175.30344061,0.00010075,2]
[398863616,1765934791155,-178.52079924,0.0001015,2]
[398863633,1765935031959,-562.0,0.0001015,2]
[398863634,1765935031968,-171.7973718,0.00010754,2]
[398863635,1765935031977,-5707.2758976,0.00011358,2]
[398863636,1765935031987,-832.0,0.00011756,2]
[398863637,1765935031997,-300.0,0.00011757,2]
[398863638,1765935032007,-500.0,0.00011758,2]
[398863639,1765935032017,-500.0,0.00011758,2]
[398863640,1765935032028,-153.09242103,0.00011758,2]
[398863641,1765935032038,-500.0,0.00011758,2]
[398863642,1765935032048,-500.0,0.00011758,2]
[398863643,1765935032056,-319.49314794,0.00011758,2]
[398863644,1765935032066,-433.02509954,0.00011758,2]
[398863645,1765935032076,-500.0,0.00011758,2]
[398863646,1765935032085,-500.0,0.00011758,2]
[398863647,1765935032095,-500.0,0.00011758,2]
[398863648,1765935032103,-500.0,0.00011758,2]
[398863649,1765935032112,-500.0,0.00011758,2]
[398863650,1765935032122,-500.0,0.00011758,2]
[398863651,1765935032131,-500.0,0.00011758,2]
[398863652,1765935032141,-500.0,0.00011758,2]
[398863653,1765935032151,-297.14714034,0.00011758,2]
[398863654,1765935032160,-169.9213539,0.00011758,2]
[398863655,1765935032169,-300.0,0.00011763,2]
[398863656,1765935032178,-300.0,0.00011763,2]
[398863657,1765935032187,-300.0,0.00011763,2]
[398863658,1765935032196,-300.0,0.00011763,2]
[398863659,1765935032205,-300.0,0.00011763,2]
[398863660,1765935032214,-300.0,0.00011763,2]
[398863661,1765935032223,-300.0,0.00011763,2]
[398863662,1765935032232,-300.0,0.00011763,2]
[398863663,1765935032242,-300.0,0.00011763,2]
[398863664,1765935032251,-300.0,0.00011763,2]
[398863665,1765935032261,-300.0,0.00011763,2]
[398863666,1765935032269,-300.0,0.00011763,2]
[398863667,1765935032279,-300.0,0.00011763,2]
[398863668,1765935032288,-300.0,0.00011763,2]
[398863669,1765935032298,-300.0,0.00011763,2]
[398863670,1765935032308,-600.0,0.00011763,2]
[398863671,1765935032319,-198.08824625,0.0001263,2]
[398863672,1765935032330,-202.72089873,0.00012754,2]
[398863673,1765935032340,-720.0,0.00012939,2]
[398863674,1765935032351,-376.26864403,0.00013273,2]
[398863675,1765935032360,-500.0,0.00013273,2]
[398863676,1765935032369,-299.4975185,0.00013273,2]
[398863677,1765935032378,-500.0,0.00013273,2]
[398863678,1765935032387,-500.0,0.00013273,2]